bitfinex-derivatives/quotes_BTCF0:USTF0_20250212
["timestamp","ask_amount","ask_price","bid_price","bid_amount"]
[1739374493247,0.0522378,95721.0,95701.0,0.01632647]
[1739374493445,0.2089972,95700.0,95691.0,0.2090162]
[1739374493644,0.2089972,95700.0,95692.0,0.02611845]
[1739374493939,0.3608,95713.0,95692.0,0.2090136]
[1739374494144,0.2089864,95705.0,95692.0,0.2090136]
[1739374494345,0.2089864,95705.0,95692.0,0.20917032]
[1739374494540,0.18820462,95710.0,95692.0,0.20917032]
[1739374494747,0.2089973,95700.0,95692.0,0.00015672]
[1739374496438,0.2090081,95695.0,95692.0,0.00015672]
[1739374496641,0.2089952,95701.0,95692.0,0.00015672]
[1739374496843,0.00015672,95703.0,95692.0,0.00015672]
[1739374497150,0.2090019,95698.0,95692.0,0.00015672]
[1739374497454,0.00015672,95703.0,95694.0,0.3608]
[1739374497753,0.00015672,95703.0,95702.0,0.3608]
[1739374498052,0.00015672,95703.0,95702.0,0.38692177]
[1739374499337,0.00015672,95703.0,95702.0,0.3608]
[1739374499945,0.2090057,95696.0,95694.0,0.3608]
[1739374500249,0.3608,95696.0,95679.0,0.00156749]
[1739374500440,0.3608,95696.0,95665.0,0.36136]
[1739374500441,0.3608,95687.0,95665.0,0.36136]
[1739374500748,0.3608,95687.0,95665.0,0.3608]
[1739374500749,0.2090677,95668.0,95665.0,0.3608]
[1739374500938,0.1853,95686.0,95665.0,0.7216]
[1739374501137,0.1853,95686.0,95685.0,0.3608]
[1739374501350,0.2090173,95691.0,95685.0,0.3608]
[1739374501942,0.22221543,95691.0,95685.0,0.3608]
[1739374502456,0.2090211,95689.0,95676.0,0.36090478]
[1739374502644,0.2090465,95678.0,95676.0,0.00010478]
[1739374502849,0.3608,95685.0,95653.0,0.3608]
[1739374502850,0.5433,95677.0,95653.0,0.3608]
[1739374503053,0.2090791,95663.0,95653.0,0.3608]
[1739374503441,0.209088,95659.0,95653.0,0.3608]
[1739374504350,0.39727572,95667.0,95653.0,0.3608]
[1739374504652,0.2090747,95665.0,95653.0,0.3608]
[1739374505162,0.18820462,95667.0,95653.0,0.3608]
[1739374505448,0.00015681,95668.0,95653.0,0.3608]
[1739374505644,0.00015681,95668.0,95662.0,0.3608]
[1739374505953,0.001,95667.0,95662.0,0.3608]
[1739374506547,0.2090741,95665.0,95662.0,0.3608]
[1739374506749,0.00015681,95668.0,95657.0,0.00012889]
[1739374506750,0.36395681,95668.0,95657.0,0.00012889]
[1739374506947,0.3608,95658.0,95657.0,0.00012889]
[1739374508650,0.5698887,95658.0,95657.0,0.00012889]
[1739374508955,0.5688887,95658.0,95657.0,0.00012889]
[1739374509755,0.5748887,95658.0,95657.0,0.00112889]
[1739374509952,0.9356887,95658.0,95657.0,0.00112889]
[1739374510155,0.9356887,95658.0,95624.0,0.0015684]
[1739374510156,0.2091517,95630.0,95624.0,0.0015684]
[1739374510353,0.2091586,95627.0,95624.0,0.0015684]
[1739374510550,0.2091606,95626.0,95624.0,0.0015684]
[1739374511053,0.2091802,95617.0,95610.0,0.3608]
[1739374511754,0.2091864,95614.0,95610.0,0.3608]
[1739374511948,0.0001024,95613.0,95598.0,0.37372765]
[1739374512257,0.2091985,95608.0,95598.0,0.37372765]
[1739374512459,0.0001024,95613.0,95598.0,0.37372765]
[1739374512850,0.3608,95607.0,95593.0,0.3608]
[1739374513050,0.2082114,95602.0,95583.0,0.1709]
[1739374513251,0.2082114,95602.0,95589.0,0.01292108]
[1739374513853,0.2082114,95602.0,95600.0,0.105]
[1739374514049,0.00013544,95601.0,95600.0,0.105]
[1739374515858,0.00013544,95601.0,95600.0,0.1]
[1739374516558,0.00013544,95601.0,95580.0,0.1761]
[1739374516559,0.00013544,95601.0,95579.0,0.36236912]
[1739374516751,0.00013544,95601.0,95579.0,0.00156912]
[1739374516752,0.18820462,95590.0,95579.0,0.00156912]
[1739374517054,0.18820462,95600.0,95579.0,0.00156912]
[1739374517246,0.00015689,95594.0,95589.0,0.2092388]
[1739374517451,0.00015689,95594.0,95586.0,0.3608]
[1739374518352,0.2092452,95587.0,95585.0,0.3608]
[1739374518754,0.20938759,95594.0,95585.0,0.3608]
[1739374518963,0.2092314,95593.0,95585.0,0.3608]
[1739374519459,0.2092344,95592.0,95585.0,0.3608]
[1739374519862,0.00015689,95594.0,95585.0,0.3608]
[1739374520158,0.00015689,95594.0,95586.0,0.1829]
[1739374520658,0.001,95592.0,95586.0,0.1829]
[1739374521558,0.00115689,95594.0,95590.0,0.2092354]
[1739374521759,0.00115689,95594.0,95593.0,0.3608]
[1739374521956,0.00115689,95594.0,95593.0,0.5700309]
[1739374522162,0.00013544,95601.0,95598.0,0.2092193]
[1739374522460,0.00013544,95601.0,95593.0,0.3608]
[1739374522650,0.2092282,95595.0,95593.0,0.3608]
[1739374522857,0.00013544,95601.0,95586.0,0.1879]
[1739374522858,0.209244,95588.0,95586.0,0.1879]
[1739374523451,0.55024463,95596.0,95586.0,0.1879]
[1739374523657,0.2092348,95592.0,95586.0,0.1879]
[1739374523960,0.3608,95587.0,95586.0,0.1879]
[1739374524263,0.36088415,95587.0,95586.0,0.005]
[1739374525257,0.00108415,95587.0,95579.0,0.00156912]
[1739374525561,0.2092015,95607.0,95586.0,0.3608]
[1739374525759,0.18820462,95610.0,95586.0,0.3608]
[1739374525957,0.2092215,95598.0,95588.0,0.209241]
[1739374526262,0.2092215,95598.0,95594.0,0.3608]
[1739374526668,7.853e-05,95596.0,95594.0,0.3608]
[1739374526967,0.2092265,95595.0,95594.0,0.3608]
[1739374527358,7.853e-05,95596.0,95589.0,0.1854]
[1739374528153,0.2092408,95589.0,95586.0,0.001]
[1739374528360,0.209242,95588.0,95586.0,0.001]
[1739374529158,0.2092593,95580.0,95579.0,0.00156912]
[1739374529359,0.5700593,95580.0,95579.0,0.00156912]
[1739374529564,0.39182604,95580.0,95579.0,0.00156912]
[1739374529763,0.3608,95580.0,95579.0,0.00156912]
[1739374530360,0.56087089,95589.0,95579.0,0.00156912]
[1739374530556,0.1724,95595.0,95579.0,0.00156912]
[1739374530768,0.2092321,95593.0,95579.0,0.00156912]
[1739374531069,0.00107853,95596.0,95590.0,0.3608]
[1739374531271,7.853e-05,95596.0,95590.0,0.3608]
[1739374531666,7.853e-05,95596.0,95590.0,0.5700367]
[1739374532370,7.853e-05,95596.0,95595.0,0.2092265]
[1739374532571,7.853e-05,95596.0,95595.0,0.5700265]
[1739374533368,0.18655657,95620.0,95595.0,0.6714589]
[1739374533571,0.18655657,95620.0,95614.0,0.3608]
[1739374533771,0.18655657,95620.0,95618.0,0.2091751]
[1739374534071,0.18655657,95620.0,95615.0,0.1681]
[1739374535269,0.18655657,95620.0,95614.0,0.3608]
[1739374535670,0.00156974,95622.0,95614.0,0.3608]
[1739374536071,0.21073804,95622.0,95614.0,0.3608]
[1739374536270,0.3608,95618.0,95608.0,0.00015689]
[1739374536472,0.2091817,95616.0,95608.0,0.00015689]
[1739374536672,0.55024463,95618.0,95608.0,0.00015689]
[1739374536871,0.2091949,95610.0,95608.0,0.00015689]
[1739374537768,0.75942103,95618.0,95608.0,0.00015689]
[1739374537968,0.75818102,95618.0,95608.0,0.00015689]
[1739374538368,0.002,95610.0,95608.0,0.00015689]
[1739374539264,0.00156974,95622.0,95608.0,0.00015689]
[1739374539470,0.00156974,95622.0,95621.0,0.3608]
[1739374539773,0.00015689,95627.0,95624.0,0.2091614]
[1739374539968,0.00015689,95627.0,95625.0,0.3957601]
[1739374540170,0.00015689,95627.0,95625.0,0.1866]
[1739374540477,0.00015689,95627.0,95625.0,0.3957587]
[1739374541268,0.00015689,95627.0,95621.0,0.37113887]
[1739374542673,0.004,95622.0,95621.0,0.3608]
[1739374543271,0.004,95622.0,95608.0,0.17725689]
[1739374543272,0.2091824,95616.0,95608.0,0.00015689]
[1739374543467,0.2091875,95613.0,95608.0,0.00015689]
[1739374543983,0.2091922,95611.0,95608.0,0.00015689]
[1739374544376,0.18820462,95620.0,95608.0,0.00015689]
[1739374544587,0.2091945,95610.0,95608.0,0.00515689]
[1739374544981,0.2101807,95616.0,95608.0,0.00515689]
[1739374545778,0.2091841,95615.0,95608.0,0.00515689]
[1739374545977,0.001,95616.0,95608.0,0.00715689]
[1739374546277,0.209194,95610.0,95608.0,0.00715689]
[1739374546779,0.2101816,95616.0,95608.0,0.00715689]
[1739374547080,0.2091944,95610.0,95608.0,0.00715689]
[1739374547379,0.2091856,95614.0,95608.0,0.00715689]
[1739374547680,0.001,95616.0,95608.0,0.00715689]
[1739374547983,0.2091956,95610.0,95608.0,0.00715689]
[1739374548375,0.2092265,95595.0,95588.0,0.01031891]
[1739374548575,0.2092265,95595.0,95586.0,0.3608]
[1739374549378,0.2092265,95595.0,95582.0,0.1723]
[1739374549582,0.2082265,95595.0,95585.0,0.00015689]
[1739374550187,0.3608,95595.0,95585.0,0.00015689]
[1739374550381,0.5700462,95586.0,95585.0,0.00015689]
[1739374551084,0.2092578,95581.0,95574.0,0.3608]
[1739374551282,0.2092578,95581.0,95574.0,0.36136]
[1739374551484,0.2092578,95581.0,95574.0,0.3608]
[1739374553687,0.2112578,95581.0,95574.0,0.3608]
[1739374553873,0.2102578,95581.0,95574.0,0.3608]
[1739374554279,0.1813,95580.0,95574.0,0.3608]
[1739374555084,0.1813,95580.0,95579.0,0.00256912]
[1739374555588,0.1811,95580.0,95579.0,0.00256912]
[1739374555990,0.002,95580.0,95579.0,0.00256912]
[1739374557790,0.009,95580.0,95579.0,0.00256912]
[1739374558682,0.009,95580.0,95579.0,0.21183062]
[1739374559189,0.009,95580.0,95579.0,0.00256912]
[1739374559488,0.006,95580.0,95579.0,0.00256912]
[1739374560084,0.005,95580.0,95579.0,0.21183062]
[1739374560388,0.005,95580.0,95579.0,0.57263062]
[1739374560586,0.00015689,95604.0,95602.0,0.2092095]
[1739374560774,0.00015689,95604.0,95603.0,0.3608]
[1739374560980,0.00015689,95604.0,95603.0,0.570009]
[1739374561277,0.00015689,95604.0,95603.0,0.209209]
[1739374561491,0.00015689,95604.0,95599.0,0.3608]
[1739374561683,0.2092112,95602.0,95599.0,0.3608]
[1739374561882,0.00015689,95604.0,95599.0,0.3608]
[1739374562588,0.00015689,95604.0,95602.0,0.2092102]
[1739374563591,0.1735,95625.0,95600.0,0.1706]
[1739374563785,0.2091661,95623.0,95617.0,0.3608]
[1739374563989,0.2091713,95621.0,95607.0,0.2091997]
[1739374564186,0.39737742,95620.0,95607.0,0.2091997]
[1739374564587,0.2091728,95620.0,95617.0,0.3608]
[1739374564890,0.1735,95625.0,95617.0,0.3608]
[1739374564891,0.00015689,95623.0,95617.0,0.3608]
[1739374565479,0.00015689,95623.0,95607.0,0.01047037]
[1739374565683,0.2091806,95616.0,95607.0,0.001]
[1739374566686,0.00015689,95623.0,95613.0,0.3608]
[1739374566882,0.00015689,95623.0,95613.0,0.5699868]
[1739374567088,0.2091674,95622.0,95613.0,0.3608]
[1739374567691,0.2091719,95620.0,95613.0,0.3608]
[1739374567993,0.209178,95618.0,95607.0,0.001]
[1739374568791,0.209178,95618.0,95613.0,0.3608]
[1739374568989,0.00015689,95623.0,95613.0,0.3608]
[1739374569189,0.01015689,95623.0,95617.0,0.001]
[1739374569994,0.01015689,95623.0,95621.0,0.209169]
[1739374570187,0.3608,95646.0,95617.0,0.001]
[1739374570188,0.3608,95646.0,95622.0,0.3608]
[1739374570384,0.3608,95646.0,95638.0,0.3608]
[1739374570594,0.3608,95646.0,95622.0,0.3608]
[1739374570595,0.3608,95646.0,95630.0,0.3608]
[1739374570799,0.2091087,95649.0,95636.0,0.2091363]
[1739374570986,0.2091087,95649.0,95638.0,0.2091309]
[1739374571183,0.2091087,95649.0,95641.0,0.3608]
[1739374571393,0.00015689,95653.0,95641.0,0.3608]
[1739374571598,0.00015689,95653.0,95652.0,0.3608]
[1739374572093,0.3674,95679.0,95652.0,0.3608]
[1739374572297,0.3674,95679.0,95666.0,0.3608]
[1739374572603,0.2090321,95684.0,95678.0,0.3608]
[1739374573097,0.00156902,95687.0,95678.0,0.3608]
[1739374573291,0.00156902,95687.0,95686.0,0.3608]
[1739374573487,0.00156902,95687.0,95678.0,0.5698442]
[1739374573488,0.18655657,95688.0,95678.0,0.00056]
[1739374573699,0.37476119,95688.0,95671.0,0.00015681]
[1739374573995,0.2090268,95687.0,95671.0,0.00015681]
[1739374574196,0.2090329,95684.0,95678.0,0.001]
[1739374574594,0.37476119,95688.0,95678.0,0.001]
[1739374574595,0.18655657,95688.0,95678.0,0.001]
[1739374574795,0.18655657,95688.0,95685.0,0.3608]
[1739374575801,0.00015681,95691.0,95685.0,0.3608]
[1739374575989,0.002,95688.0,95685.0,0.3608]
[1739374576699,0.005,95688.0,95685.0,0.3608]
[1739374576892,0.005,95688.0,95685.0,0.5698285]
[1739374577498,0.005,95688.0,95686.0,0.2090262]
[1739374577700,0.006,95688.0,95686.0,0.2090262]
[1739374578093,0.1,95700.0,95687.0,0.2090238]
[1739374578294,0.1,95700.0,95694.0,0.3608]
[1739374578901,0.3608,95698.0,95686.0,0.343]
[1739374579093,0.5698253,95687.0,95672.0,0.713]
[1739374579494,0.3608,95687.0,95672.0,0.7235848]
[1739374579903,0.3608,95687.0,95678.0,0.2090436]
[1739374580105,0.3608,95687.0,95672.0,0.7241848]
[1739374580300,0.3608,95687.0,95672.0,0.9326414]
[1739374581511,0.3608,95687.0,95672.0,0.7265848]
[1739374581805,0.3608,95687.0,95672.0,0.003]
[1739374581806,0.2090416,95680.0,95672.0,0.003]
[1739374582097,0.1732,95686.0,95672.0,0.005]
[1739374582297,0.2090364,95682.0,95672.0,0.005]
[1739374582898,0.1732,95686.0,95672.0,0.005]
[1739374583203,0.2090549,95674.0,95672.0,0.003]
[1739374583698,0.3608,95678.0,95655.0,0.01024635]
[1739374583900,0.3608,95668.0,95656.0,0.2090929]
[1739374584203,0.3608,95668.0,95654.0,0.37155473]
[1739374584714,0.3608,95668.0,95654.0,0.58065093]
[1739374584900,0.3608,95668.0,95656.0,0.2090925]
[1739374585199,0.3608,95668.0,95654.0,0.37155473]
[1739374586107,0.3608,95668.0,95654.0,0.37755473]
[1739374586709,0.2090564,95673.0,95654.0,0.37755473]
[1739374586901,0.2090485,95677.0,95662.0,0.2090797]
[1739374587101,0.00015681,95683.0,95675.0,0.3608]
[1739374587407,0.00015681,95683.0,95682.0,0.2090362]
[1739374588000,0.00015681,95683.0,95682.0,0.22536414]
[1739374588203,0.1686,95699.0,95687.0,0.2090234]
[1739374588703,0.3608,95703.0,95687.0,0.2090234]
[1739374588898,0.3608,95703.0,95687.0,0.21977734]
[1739374589508,0.36095681,95703.0,95688.0,0.01632794]
[1739374589909,0.36095681,95703.0,95694.0,0.2090082]
[1739374590504,0.36095681,95703.0,95695.0,0.01632794]
[1739374590702,0.103,95700.0,95695.0,0.01632794]
[1739374590902,0.103,95700.0,95696.0,0.01632794]
[1739374591499,0.103,95700.0,95699.0,0.2089991]
[1739374591709,0.0015681,95720.0,95707.0,0.2089805]
[1739374591909,0.0015681,95720.0,95710.0,0.39717832]
[1739374592105,0.0015681,95720.0,95710.0,0.2089737]
[1739374592305,0.0015681,95720.0,95711.0,0.01632794]
[1739374592907,0.3608,95722.0,95708.0,0.3608]
[1739374592908,0.18179063,95722.0,95712.0,0.01632794]
[1739374593110,0.00015672,95725.0,95716.0,0.3608]
[1739374593404,0.00015672,95725.0,95717.0,0.2089598]
[1739374593716,0.00015672,95725.0,95717.0,0.01632794]
[1739374594014,0.00015672,95725.0,95724.0,0.2089445]
[1739374594311,0.00015672,95725.0,95724.0,0.5697445]
[1739374594706,0.00015672,95725.0,95724.0,0.58607244]
[1739374594901,0.1746,95746.0,95724.0,0.37712794]
[1739374595102,0.1746,95746.0,95732.0,0.3608]
[1739374595514,0.0105808,95752.0,95733.0,0.01632794]
[1739374595716,0.1746,95754.0,95735.0,0.2089187]
[1739374595907,0.2088819,95753.0,95735.0,0.2089187]
[1739374596103,0.2088819,95753.0,95735.0,0.20907542]
[1739374596302,0.18820462,95750.0,95735.0,0.00015672]
[1739374596712,0.5696866,95751.0,95735.0,0.00015672]
[1739374597123,0.5696866,95751.0,95736.0,0.01632794]
[1739374597319,0.2088884,95750.0,95736.0,0.01632794]
[1739374597624,0.18820462,95750.0,95736.0,0.01632794]
[1739374597914,0.208915,95738.0,95737.0,0.01632794]
[1739374599421,0.3608,95739.0,95737.0,0.01632794]
[1739374599725,0.007,95738.0,95737.0,0.01732794]
[1739374600313,0.007,95738.0,95737.0,0.03364962]
[1739374600908,0.007,95738.0,95737.0,0.04526821]
[1739374601108,0.18820462,95750.0,95737.0,0.03464962]
[1739374601417,0.208899,95745.0,95738.0,0.01632168]
[1739374601618,0.3608,95748.0,95739.0,0.01632168]
[1739374601809,0.2089055,95742.0,95740.0,0.01632168]
[1739374602008,0.2089055,95742.0,95741.0,0.01632168]
[1739374602507,0.2089096,95740.0,95739.0,0.01632794]
[1739374602706,0.208914,95738.0,95737.0,0.01832168]
[1739374602921,0.569714,95738.0,95737.0,0.002]
[1739374603116,0.569714,95738.0,95737.0,0.001]
[1739374603313,0.569714,95738.0,95737.0,0.002]
[1739374603513,0.6608,95738.0,95706.0,0.01632426]
[1739374603711,0.3608,95715.0,95700.0,0.2089959]
[1739374603912,0.2089729,95712.0,95701.0,0.2089943]
[1739374604121,0.173,95714.0,95697.0,0.01044674]
[1739374604619,0.36208,95715.0,95700.0,0.18836134]
[1739374604821,0.00015672,95719.0,95708.0,0.3608]
[1739374605013,0.00015672,95719.0,95709.0,0.347]
[1739374605211,0.00015672,95719.0,95708.0,0.3608]
[1739374605417,0.00015672,95719.0,95710.0,0.01632584]
[1739374605718,0.2089716,95712.0,95710.0,0.01632584]
[1739374606118,0.2089716,95712.0,95711.0,0.01632584]
[1739374606515,0.2079716,95712.0,95711.0,0.01632584]
[1739374606717,0.3765587,95718.0,95711.0,0.01632584]
[1739374607017,0.2089667,95714.0,95711.0,0.01632584]
[1739374607227,0.001,95712.0,95711.0,0.01632584]
[1739374608518,0.0010417,95712.0,95711.0,0.01632584]
[1739374609215,4.17e-05,95712.0,95711.0,0.01632584]
[1739374609422,4.17e-05,95712.0,95711.0,0.22529874]
[1739374610624,0.2089055,95742.0,95725.0,0.2089413]
[1739374610825,0.3769076,95741.0,95733.0,0.3608]
[1739374611026,0.168,95741.0,95733.0,0.3608]
[1739374611323,0.1746,95749.0,95737.0,0.2089155]
[1739374611716,0.1746,95749.0,95738.0,0.01632584]
[1739374612211,0.3608,95740.0,95738.0,0.01632584]
[1739374612416,0.3608,95740.0,95739.0,0.01632584]
[1739374612417,0.569711,95740.0,95739.0,0.01632584]
[1739374613320,0.208927,95732.0,95731.0,0.00015672]
[1739374614426,0.569727,95732.0,95731.0,0.00015672]
[1739374614817,0.575727,95732.0,95731.0,0.00215672]
[1739374615127,0.2089685,95713.0,95705.0,8.444e-05]
[1739374615325,0.54900462,95722.0,95705.0,8.444e-05]
[1739374615529,0.2079838,95706.0,95705.0,8.444e-05]
[1739374615718,0.2079838,95706.0,95705.0,0.01641016]
[1739374616027,0.2069838,95706.0,95705.0,0.01641016]
[1739374616328,0.2069838,95706.0,95705.0,8.444e-05]
[1739374616622,0.2069838,95706.0,95705.0,0.01641016]
[1739374616827,0.2069838,95706.0,95705.0,0.01641201]
[1739374618015,0.2059838,95706.0,95705.0,0.01641201]
[1739374618325,0.2059838,95706.0,95705.0,8.444e-05]
[1739374618819,0.2089838,95706.0,95705.0,0.01641201]
[1739374619414,0.2089838,95706.0,95705.0,8.444e-05]
[1739374620121,0.2109838,95706.0,95705.0,8.444e-05]
[1739374620829,0.2109838,95706.0,95705.0,0.01641201]
[1739374622129,0.5869,95706.0,95678.0,0.1676]
[1739374622326,0.209047,95678.0,95675.0,0.2090495]
[1739374622623,0.2090471,95677.0,95676.0,0.45692255]
[1739374623027,0.2090471,95677.0,95676.0,0.24787345]
[1739374623231,0.20913154,95677.0,95676.0,0.24787345]
[1739374623414,8.444e-05,95677.0,95667.0,0.30752846]
[1739374623621,0.5698668,95668.0,95667.0,0.30752846]
[1739374623919,0.5628668,95668.0,95667.0,0.30752846]
[1739374624425,0.56295124,95668.0,95667.0,0.30752846]
[1739374624834,0.56275124,95668.0,95667.0,0.30752846]
[1739374625023,0.55975124,95668.0,95667.0,0.30752846]
[1739374625723,0.56075124,95668.0,95667.0,0.30752846]
[1739374625921,0.21015124,95668.0,95667.0,0.30752846]
[1739374626321,0.00108444,95668.0,95667.0,0.30752846]
[1739374626730,0.00156846,95698.0,95667.0,0.31652846]
[1739374626731,0.001,95677.0,95667.0,0.31652846]
[1739374627028,0.00156846,95698.0,95691.0,0.2090164]
[1739374627231,0.00156846,95698.0,95697.0,0.3608]
[1739374628818,0.00856846,95698.0,95697.0,0.3608]
[1739374630433,0.21756976,95698.0,95697.0,0.3608]
[1739374630936,0.22956976,95698.0,95697.0,0.3618]
[1739374631131,0.22956976,95698.0,95697.0,0.001]
[1739374632126,0.32056846,95698.0,95688.0,0.00015672]
[1739374632337,0.5698209,95689.0,95688.0,0.00015672]
[1739374634233,0.58054114,95689.0,95688.0,0.00015672]
[1739374634935,0.5738209,95689.0,95688.0,0.00015672]
[1739374635135,0.3648,95689.0,95688.0,0.00015672]
[1739374635633,0.004,95689.0,95688.0,0.00015672]
[1739374637041,0.004,95689.0,95688.0,0.00115672]
[1739374637834,0.1782,95689.0,95688.0,0.00115672]
[1739374638546,0.18862401,95689.0,95688.0,0.00115672]
[1739374639039,0.014,95689.0,95688.0,0.00115672]
[1739374642337,0.014,95689.0,95668.0,0.7724]
[1739374642639,0.2090523,95675.0,95668.0,0.7724]
[1739374642945,0.2090523,95675.0,95665.0,0.57200065]
[1739374643132,0.3608,95681.0,95665.0,0.36292775]
[1739374643332,0.18820462,95680.0,95665.0,0.36236775]
[1739374643539,0.2090583,95672.0,95665.0,0.36236775]
[1739374643747,0.2090583,95672.0,95668.0,0.008]
[1739374644042,0.18820462,95680.0,95668.0,0.008]
[1739374644341,0.2090439,95679.0,95668.0,0.008]
[1739374644734,0.3608,95680.0,95671.0,0.2090594]
[1739374644934,0.3608,95680.0,95668.0,0.008]
[1739374645142,0.209043,95679.0,95668.0,0.2170664]
[1739374645448,0.36095672,95683.0,95669.0,0.2090641]
[1739374645744,0.00015672,95683.0,95669.0,0.2090641]
[1739374645944,0.2090399,95681.0,95670.0,0.0163316]
[1739374646347,0.2090399,95681.0,95671.0,0.0163316]
[1739374646550,0.00015672,95683.0,95670.0,0.0163316]
[1739374646744,0.3608,95677.0,95670.0,0.0163316]
[1739374646947,0.2090603,95671.0,95669.0,0.004]
[1739374648053,0.2090603,95671.0,95670.0,0.002]
[1739374648445,0.2090603,95671.0,95669.0,0.004]
[1739374648642,0.2090603,95671.0,95669.0,0.006]
[1739374649350,0.2060603,95671.0,95669.0,0.002]
[1739374650047,0.4271603,95671.0,95669.0,0.002]
[1739374650243,0.2090734,95665.0,95658.0,0.31036425]
[1739374650444,0.5698734,95665.0,95658.0,0.31036425]
[1739374650949,0.5698734,95665.0,95645.0,0.2091162]
[1739374651248,0.5698734,95665.0,95638.0,0.37864325]
[1739374651249,0.3608,95665.0,95640.0,0.3608]
[1739374651448,0.20772133,95649.0,95641.0,0.2091253]
[1739374651648,0.3608,95654.0,95641.0,0.2091253]
[1739374651841,0.3608,95654.0,95640.0,0.3608]
[1739374652038,0.27340462,95660.0,95640.0,0.3608]
[1739374652241,0.3608,95656.0,95640.0,0.3608]
[1739374652443,0.3608,95656.0,95641.0,0.00015681]
[1739374652752,0.2091154,95646.0,95642.0,0.1698]
[1739374652951,0.2091178,95645.0,95642.0,0.1698]
[1739374653455,0.2087215,95643.0,95641.0,0.00015681]
[1739374653640,0.3608,95646.0,95641.0,0.00015681]
[1739374653840,0.2091217,95643.0,95641.0,0.00015681]
[1739374654254,0.209118,95645.0,95641.0,0.00015681]
[1739374654744,0.3608,95647.0,95642.0,0.008]
[1739374654955,0.2091194,95644.0,95642.0,0.008]
[1739374655544,0.2091194,95644.0,95642.0,0.006]
[1739374655946,0.3608,95647.0,95642.0,0.006]
[1739374656153,0.2091215,95643.0,95642.0,0.006]
[1739374657047,0.2091236,95642.0,95641.0,0.00715681]
[1739374657547,0.2091236,95642.0,95641.0,0.00515681]
[1739374657748,0.2071236,95642.0,95641.0,0.00015681]
[1739374657939,0.2021236,95642.0,95641.0,0.00015681]
[1739374658347,0.2021236,95642.0,95641.0,0.00215681]
[1739374659652,0.2091723,95620.0,95612.0,0.2091882]
[1739374659855,0.18820462,95630.0,95612.0,0.157]
[1739374660051,0.2091718,95620.0,95619.0,0.01634026]
[1739374660354,0.2051739,95619.0,95612.0,0.157]
[1739374660745,0.20528319,95619.0,95612.0,0.157]
[1739374661146,0.20528319,95619.0,95609.0,0.00015681]
[1739374661357,0.56608319,95619.0,95609.0,0.00015681]
[1739374661653,0.56588319,95619.0,95609.0,0.00015681]
[1739374661963,0.57648369,95619.0,95609.0,0.00015681]
[1739374662255,0.58248369,95619.0,95609.0,0.00015681]
[1739374662855,0.2091936,95610.0,95609.0,0.00015681]
[1739374663044,0.5699936,95610.0,95609.0,0.00015681]
[1739374663858,0.00742929,95619.0,95609.0,0.36095681]
[1739374664151,0.01410929,95619.0,95618.0,0.2091761]
[1739374664345,0.02010929,95619.0,95618.0,0.3565761]
[1739374664951,0.00610929,95619.0,95618.0,0.3565761]
[1739374665155,0.209148,95631.0,95622.0,0.2091659]
[1739374665351,0.209148,95631.0,95626.0,0.3608]
[1739374665551,0.36204001,95640.0,95626.0,0.3608]
[1739374665854,0.3608,95640.0,95627.0,0.2091564]
[1739374666945,0.3608,95640.0,95631.0,0.209146]
[1739374667152,0.3608,95640.0,95626.0,0.3608]
[1739374667351,0.3608,95640.0,95627.0,0.209155]
[1739374667555,0.2091309,95639.0,95627.0,0.209155]
[1739374668078,0.3608,95640.0,95627.0,0.209155]
[1739374668282,0.2091326,95638.0,95626.0,0.3608]
[1739374668494,0.012,95628.0,95627.0,0.001]
[1739374669482,0.5819543,95628.0,95627.0,0.001]
[1739374669688,0.2091718,95620.0,95619.0,0.014]
[1739374669880,0.5689718,95620.0,95619.0,0.014]
[1739374670314,0.4509,95627.0,95619.0,0.014]
[1739374670315,0.1528,95627.0,95619.0,0.014]
[1739374670576,0.37446199,95628.0,95619.0,0.014]
[1739374670577,0.2091718,95620.0,95619.0,0.014]
[1739374670970,0.003,95628.0,95619.0,0.014]
[1739374671167,0.2091611,95625.0,95619.0,0.014]
[1739374671378,0.003,95628.0,95619.0,0.014]
[1739374671674,0.003,95628.0,95627.0,0.3618]
[1739374671675,0.017,95628.0,95627.0,0.3618]
[1739374672477,0.003,95628.0,95627.0,0.3608]
[1739374672670,0.003,95628.0,95607.0,0.0852]
[1739374672671,0.74896,95628.0,95600.0,0.1]
[1739374672860,0.2092133,95601.0,95600.0,0.1]
[1739374673060,0.2092615,95579.0,95578.0,0.0015691]
[1739374673261,0.5700615,95579.0,95578.0,0.0015691]
[1739374673565,0.1534,95600.0,95578.0,0.32791715]
[1739374673758,0.3608,95606.0,95596.0,0.3608]
[1739374673954,0.3608,95606.0,95597.0,0.01634805]
[1739374674155,0.2093746,95599.0,95598.0,0.01634805]
[1739374674357,0.2092199,95598.0,95597.0,0.01634215]
[1739374675559,0.2090199,95598.0,95597.0,0.01634215]
[1739374676258,0.2290199,95598.0,95597.0,0.01634215]
[1739374676459,0.0523064,95596.0,95579.0,0.01650495]
[1739374676667,0.5700571,95581.0,95580.0,0.01634706]
[1739374677068,0.5700571,95581.0,95579.0,0.0001569]
[1739374677269,0.5700571,95581.0,95579.0,0.01650396]
[1739374677564,0.5700571,95581.0,95579.0,0.0001569]
[1739374677864,0.1992571,95581.0,95579.0,0.0001569]
[1739374678069,0.1992571,95581.0,95579.0,0.01650396]
[1739374678275,0.2092453,95587.0,95579.0,0.01650396]
[1739374678465,0.2092466,95586.0,95579.0,0.01650396]
[1739374678659,0.2092466,95586.0,95579.0,0.01650377]
[1739374678861,0.3608,95591.0,95580.0,0.01634687]
[1739374679067,0.3608,95591.0,95581.0,0.01634687]
[1739374679362,0.2092537,95583.0,95582.0,0.01634687]
[1739374679762,0.5700537,95583.0,95582.0,0.01634687]
[1739374679963,0.3608,95583.0,95580.0,0.01634687]
[1739374680168,0.2092571,95581.0,95579.0,0.0001569]
[1739374680370,0.2092571,95581.0,95579.0,0.01650377]
[1739374680571,0.2072571,95581.0,95579.0,0.01650377]
[1739374680770,0.3608,95583.0,95580.0,0.01634739]
[1739374680969,0.3608,95583.0,95581.0,0.01634739]
[1739374681168,0.3608,95583.0,95579.0,0.0001569]
[1739374681169,0.3708,95583.0,95579.0,0.01650429]
[1739374681373,0.3738,95583.0,95579.0,0.0001569]
[1739374681572,0.2092593,95580.0,95579.0,0.0001569]
[1739374682075,0.5830545,95583.0,95579.0,0.0001569]
[1739374682570,0.2092593,95580.0,95579.0,0.0001569]